fUSD/lending_fUSD_20251024
["ID","MTS","AMOUNT","RATE_DAILY","PERIOD"]
[392289793,1761312648067,-151.0,0.0004019,120]
[392289794,1761312648076,-614.577285,0.0004019,120]
[392289795,1761312648086,-151.0,0.0004019,120]
[392289796,1761312648095,-614.577285,0.0004019,120]
[392289797,1761312648104,-213.865681,0.0004019,120]
[392289798,1761312648114,-151.0,0.0004019,120]
[392289799,1761312648124,-614.577285,0.0004019,120]
[392289800,1761312648133,-151.0,0.0004019,120]
[392289801,1761312648142,-614.577285,0.0004019,120]
[392289802,1761312648152,-151.0,0.0004019,120]
[392289803,1761312648161,-279.569016,0.0004019,120]
[392289804,1761312648171,-151.0,0.0004019,120]
[392289805,1761312648180,-202.454117,0.0004019,120]
[392289806,1761312648190,-279.569016,0.0004019,120]
[392289807,1761312648198,-279.569016,0.0004019,120]
[392289808,1761312648208,-151.0,0.0004019,120]
[392289809,1761312648218,-279.569016,0.0004019,120]
[392289810,1761312648227,-154.118841,0.0004019,120]
[392289811,1761312648236,-733.937805,0.0004019,120]
[392289812,1761312648245,-257.464864,0.0004019,120]
[392289813,1761312648254,-733.937805,0.0004019,120]
[392289814,1761312648264,-257.464864,0.0004019,120]
[392289815,1761312648273,-733.937805,0.0004019,120]
[392289816,1761312648282,-733.937805,0.0004019,120]
[392289817,1761312648293,-257.464864,0.0004019,120]
[392289818,1761312648304,-186.446864,0.0004019,120]
[392289819,1761312648314,-257.464864,0.0004019,120]
[392289820,1761312648324,-186.446864,0.0004019,120]
[392289821,1761312648334,-186.446864,0.0004019,120]
[392289822,1761312648343,-186.446864,0.0004019,120]
[392289823,1761312648353,-151.0,0.0004019,120]
[392289824,1761312648362,-151.0,0.0004019,120]
[392289825,1761312648372,-242.020353,0.0004019,120]
[392289826,1761312648382,-156.602051,0.0004019,120]
[392289827,1761312648391,-242.020353,0.0004019,120]
[392289828,1761312648402,-156.602051,0.0004019,120]
[392289829,1761312648412,-151.0,0.0004019,120]
[392289830,1761312648421,-184.835516,0.0004019,120]
[392289831,1761312648430,-242.020353,0.0004019,120]
[392289832,1761312648439,-156.602051,0.0004019,120]
[392289833,1761312648448,-151.0,0.0004019,120]
[392289834,1761312648457,-242.020353,0.0004019,120]
[392289835,1761312648467,-156.602051,0.0004019,120]
[392289836,1761312648476,-5622.918379,0.0004019,120]
[392289837,1761312648486,-179.230443,0.0004019,120]
[392289838,1761312648495,-5622.918379,0.0004019,120]
[392289839,1761312648505,-5622.918379,0.0004019,120]
[392289840,1761312648515,-5622.918379,0.0004019,120]
[392289841,1761312648524,-192905.9012,0.0004019,2]
[392289842,1761312648534,-500.0,0.00040198,30]
[392289843,1761312648543,-500.0,0.00040198,2]
[392289844,1761312648553,-2771.0986842,0.00040199,2]
[392289845,1761312648562,-42255.7001023,0.00040199,2]
[392289846,1761312648571,-90790.7033454,0.00040199,2]
[392289847,1761312648580,-82526.3556035,0.00040199,2]
[392289848,1761312648590,-3406.9333329,0.00040199,2]
[392289849,1761312648600,-151.0,0.00040199,120]
[392289850,1761312648610,-151.0,0.00040199,120]
[392289851,1761312648618,-755.768009,0.00040199,120]
[392289852,1761312648633,-151.0,0.00040199,120]
[392289853,1761312648642,-755.768009,0.00040199,120]
[392289854,1761312648653,-159.784427,0.00040199,120]
[392289855,1761312648662,-755.768009,0.00040199,120]
[392289856,1761312648674,-151.0,0.00040199,120]
[392289857,1761312648683,-159.784427,0.00040199,120]
[392289858,1761312648692,-151.0,0.00040199,120]
[392289859,1761312648704,-164.499202,0.00040199,120]
[392289860,1761312648713,-755.768009,0.00040199,120]
[392289861,1761312648723,-159.784427,0.00040199,120]
[392289862,1761312648732,-164.499202,0.00040199,120]
[392289863,1761312648742,-164.499202,0.00040199,120]
[392289864,1761312648751,-159.784427,0.00040199,120]
[392289865,1761312648760,-151.0,0.00040199,120]
[392289866,1761312648770,-164.499202,0.00040199,120]
[392289867,1761312648779,-8180.6006458,0.00040199,2]
[392289868,1761312648788,-520.50774,0.00040199,120]
[392289869,1761312648797,-520.50774,0.00040199,120]
[392289870,1761312648806,-520.50774,0.00040199,120]
[392289871,1761312648816,-520.50774,0.00040199,120]
[392289872,1761312648826,-151.0,0.00040199,120]
[392289873,1761312648835,-151.0,0.00040199,120]
[392289874,1761312648844,-153.279024,0.00040199,120]
[392289875,1761312648853,-151.0,0.00040199,120]
[392289876,1761312648862,-223.517104,0.00040199,120]
[392289877,1761312648872,-186.596431,0.00040199,120]
[392289878,1761312648953,-151.0,0.00040199,30]
[392289879,1761312648963,-549.16577,0.00040199,120]
[392289880,1761312648972,-186.596431,0.00040199,120]
[392289881,1761312648981,-549.16577,0.00040199,120]
[392289882,1761312648991,-186.596431,0.00040199,120]
[392289883,1761312649000,-549.16577,0.00040199,120]
[392289884,1761312649010,-151.0,0.00040199,120]
[392289885,1761312649020,-186.596431,0.00040199,120]
[392289886,1761312649029,-549.16577,0.00040199,120]
[392289887,1761312649038,-151.0,0.00040199,120]
[392289888,1761312649047,-151.0,0.00040199,120]
[392289889,1761312649057,-255.862182,0.00040199,120]
[392289890,1761312649066,-189.143654,0.00040199,120]
[392289891,1761312649075,-189.143654,0.00040199,120]
[392289892,1761312649084,-255.862182,0.00040199,120]
[392289893,1761312649093,-151.0,0.00040199,120]
[392289894,1761312649103,-189.143654,0.00040199,120]
[392289895,1761312649112,-454.791775,0.00040199,120]
[392289896,1761312649121,-151.0,0.00040199,120]
[392289897,1761312649131,-189.143654,0.00040199,120]
[392289898,1761312649141,-454.791775,0.00040199,120]
[392289899,1761312649152,-182.504503,0.00040199,120]
[392289900,1761312649161,-454.791775,0.00040199,120]
[392289901,1761312649170,-182.504503,0.00040199,120]
[392289902,1761312649179,-151.0,0.00040199,120]
[392289903,1761312649188,-454.791775,0.00040199,120]
[392289904,1761312649197,-154.884451,0.00040199,120]
[392289905,1761312649206,-182.504503,0.00040199,120]
[392289906,1761312649215,-182.504503,0.00040199,120]
[392289907,1761312649225,-151.0,0.00040199,120]
[392289908,1761312649235,-151.0,0.00040199,120]
[392289909,1761312649245,-151.0,0.00040199,120]
[392289910,1761312649254,-215.846672,0.00040199,120]
[392289911,1761312649264,-151.0,0.00040199,120]
[392289912,1761312649273,-151.0,0.00040199,120]
[392289913,1761312649282,-151.0,0.00040199,120]
[392289914,1761312649292,-151.0,0.00040199,120]
[392289915,1761312649302,-1063.203228,0.00040199,120]
[392289916,1761312649311,-151.0,0.00040199,120]
[392289917,1761312649320,-151.0,0.00040199,120]
[392289918,1761312649329,-151.0,0.00040199,120]
[392289919,1761312649339,-1063.203228,0.00040199,120]
[392289920,1761312649347,-151.0,0.00040199,120]
[392289921,1761312649357,-151.0,0.00040199,120]
[392289922,1761312649366,-1063.203228,0.00040199,120]
[392289923,1761312649375,-1063.203228,0.00040199,120]
[392289924,1761312649384,-898.084385,0.00040199,120]
[392289925,1761312649393,-151.0,0.00040199,120]
[392289926,1761312649406,-151.0,0.00040199,120]
[392289927,1761312649416,-898.084385,0.00040199,120]
[392289928,1761312649425,-151.0,0.00040199,120]
[392289929,1761312649435,-219.339853,0.00040199,120]
[392289930,1761312649444,-151.0,0.00040199,120]
[392289931,1761312649453,-898.084385,0.00040199,120]
[392289932,1761312649463,-375.555248,0.00040199,120]
[392289933,1761312649472,-151.0,0.00040199,120]
[392289934,1761312649481,-151.0,0.00040199,120]
[392289935,1761312649491,-151.0,0.00040199,120]
[392289936,1761312649500,-898.084385,0.00040199,120]
[392289937,1761312649510,-375.555248,0.00040199,120]
[392289938,1761312649519,-151.0,0.00040199,120]
[392289939,1761312649529,-151.0,0.00040199,120]
[392289940,1761312649540,-310.740556,0.00040199,120]
[392289941,1761312649549,-375.555248,0.00040199,120]
[392289942,1761312649559,-375.555248,0.00040199,120]
[392289943,1761312649568,-310.740556,0.00040199,120]
[392289944,1761312649577,-2376.954115,0.00040199,30]
[392289945,1761312649587,-2376.954115,0.00040199,30]
[392289946,1761312649597,-151.0,0.00040199,120]
[392289947,1761312649606,-310.740556,0.00040199,120]
[392289948,1761312649615,-173.250938,0.00040199,120]
[392289949,1761312649629,-310.740556,0.00040199,120]
[392289950,1761312649639,-173.250938,0.00040199,120]
[392289951,1761312649650,-2376.954115,0.00040199,30]
[392289952,1761312649659,-173.250938,0.00040199,120]
[392289953,1761312649669,-173.250938,0.00040199,120]
[392289954,1761312649679,-2376.954115,0.00040199,30]
[392289955,1761312649689,-151.0,0.00040199,120]
[392289956,1761312649698,-151.0,0.00040199,120]
[392289957,1761312649708,-151.0,0.00040199,120]
[392289958,1761312649717,-153.257228,0.00040199,120]
[392289959,1761312649726,-153.257228,0.00040199,120]
[392289960,1761312649735,-500.0,0.00040199,30]
[392289961,1761312649745,-153.257228,0.00040199,120]
[392289962,1761312649754,-151.0,0.00040199,120]
[392289963,1761312649763,-153.257228,0.00040199,120]
[392289964,1761312649772,-151.0,0.00040199,120]
[392289965,1761312649781,-151.0,0.00040199,120]
[392289966,1761312649790,-1863.0,0.000402,5]
[392289967,1761312649799,-912.96,0.000402,30]
[392289968,1761312649808,-151.0,0.000402,120]
[392289969,1761312649818,-154.16430345,0.000402,120]
[392289970,1761312649828,-250.0,0.000402,120]
[392289971,1761312649837,-250.0,0.000402,120]
[392289972,1761312649846,-200.0,0.000402,120]
[392289973,1761312649855,-500.0,0.000402,120]
[392289974,1761312649865,-250.0,0.000402,120]
[392289975,1761312649874,-250.0,0.000402,120]
[392289976,1761312649883,-414.0,0.000402,120]
[392289977,1761312649893,-200.0,0.000402,120]
[392289978,1761312649904,-500.0,0.000402,120]
[392289979,1761312649914,-250.0,0.000402,120]
[392289980,1761312649923,-429.318,0.000402,120]
[392289981,1761312649933,-203.15143405,0.000402,120]
[392289982,1761312649943,-500.0,0.000402,120]
[392289983,1761312649953,-250.0,0.000402,120]
[392289984,1761312649963,-500.0,0.000402,120]
[392289985,1761312649974,-250.0,0.000402,120]
[392289986,1761312649984,-445.202766,0.000402,120]
[392289987,1761312649994,-500.0,0.000402,120]
[392289988,1761312650004,-250.0,0.000402,120]
[392289989,1761312650013,-250.0,0.000402,120]
[392289990,1761312650023,-500.0,0.000402,120]
[392289991,1761312650033,-461.67526834,0.000402,120]
[392289992,1761312650043,-500.0,0.000402,120]
[392289993,1761312650053,-250.0,0.000402,120]
[392289994,1761312650063,-500.0,0.000402,120]
[392289995,1761312650073,-250.0,0.000402,120]
[392289996,1761312650083,-478.75725327,0.000402,120]
[392289997,1761312650093,-500.0,0.000402,120]
[392289998,1761312650103,-500.0,0.000402,120]
[392289999,1761312650112,-250.0,0.000402,120]
[392290000,1761312650122,-500.0,0.000402,120]
[392290001,1761312650131,-250.0,0.000402,120]
[392290002,1761312650142,-500.0,0.000402,120]
[392290003,1761312650154,-346.92554585,0.000402,120]
[392290004,1761312650164,-496.47127164,0.000402,120]
[392290005,1761312650174,-500.0,0.000402,120]
[392290006,1761312650183,-250.0,0.000402,120]
[392290007,1761312650192,-250.0,0.000402,120]
[392290008,1761312650201,-286.5032696,0.000402,120]
[392290009,1761312650211,-514.84070869,0.000402,120]
[392290010,1761312650221,-500.0,0.000402,120]
[392290011,1761312650231,-500.0,0.000402,120]
[392290012,1761312650240,-500.0,0.000402,120]
[392290013,1761312650250,-250.0,0.000402,120]
[392290014,1761312650259,-533.88981491,0.000402,120]
[392290015,1761312650269,-500.0,0.000402,120]
[392290016,1761312650279,-500.0,0.000402,120]
[392290017,1761312650289,-160.18632875,0.000402,120]
[392290018,1761312650298,-500.0,0.000402,120]
[392290019,1761312650307,-250.0,0.000402,120]
[392290020,1761312650317,-500.0,0.000402,120]
[392290021,1761312650327,-500.0,0.000402,120]
[392290022,1761312650337,-151.0,0.000402,120]
[392290023,1761312650347,-500.0,0.000402,120]
[392290024,1761312650357,-250.0,0.000402,120]
[392290025,1761312650367,-500.0,0.000402,120]
[392290026,1761312650377,-156.587,0.000402,120]
[392290027,1761312650388,-500.0,0.000402,120]
[392290028,1761312650398,-250.0,0.000402,120]
[392290029,1761312650414,-500.0,0.000402,120]
[392290030,1761312650423,-500.0,0.000402,120]
[392290031,1761312650432,-162.380719,0.000402,120]
[392290032,1761312650440,-500.0,0.000402,120]
[392290033,1761312650450,-151.0,0.000402,120]
[392290034,1761312650459,-250.0,0.000402,120]
[392290035,1761312650469,-500.0,0.000402,120]
[392290036,1761312650479,-168.3888056,0.000402,120]
[392290037,1761312650488,-500.0,0.000402,120]
[392290038,1761312650498,-500.0,0.000402,120]
[392290039,1761312650507,-200.0,0.000402,120]
[392290040,1761312650517,-151.0,0.000402,120]
[392290041,1761312650526,-250.0,0.000402,120]
[392290042,1761312650536,-500.0,0.000402,120]
[392290043,1761312650545,-174.61919141,0.000402,120]
[392290044,1761312650556,-250.0,0.000402,120]
[392290045,1761312650565,-500.0,0.000402,120]
[392290046,1761312650575,-200.0,0.000402,120]
[392290047,1761312650584,-151.0,0.000402,120]
[392290048,1761312650594,-181.08010149,0.000402,120]
[392290049,1761312650607,-500.0,0.000402,120]
[392290050,1761312650617,-250.0,0.000402,120]
[392290051,1761312650629,-208.75050563,0.000402,120]
[392290052,1761312650638,-187.78006525,0.000402,120]
[392290053,1761312650648,-500.0,0.000402,120]
[392290054,1761312650662,-151.0,0.000402,120]
[392290055,1761312650673,-215.69913619,0.000402,120]
[392290056,1761312650683,-500.0,0.000402,120]
[392290057,1761312650692,-151.0,0.000402,120]
[392290058,1761312650702,-500.0,0.000402,120]
[392290059,1761312650713,-500.0,0.000402,120]
[392290060,1761312650722,-151.0,0.000402,120]
[392290061,1761312650731,-500.0,0.000402,120]
[392290062,1761312650741,-500.0,0.000402,120]
[392290063,1761312650751,-500.0,0.000402,120]
[392290064,1761312650761,-151.0,0.000402,120]
[392290065,1761312650771,-151.0,0.000402,120]
[392290066,1761312650780,-500.0,0.000402,120]
[392290067,1761312650789,-500.0,0.000402,120]
[392290068,1761312650798,-151.0,0.000402,120]
[392290069,1761312650807,-151.0,0.000402,120]
[392290070,1761312650817,-298.26089446,0.000402,30]
[392290071,1761312650826,-151.0,0.000402,120]
[392290072,1761312650835,-500.0,0.000402,120]
[392290073,1761312650845,-151.0,0.000402,120]
[392290074,1761312650855,-151.0,0.000402,120]
[392290075,1761312650865,-151.0,0.000402,120]
[392290076,1761312650875,-151.0,0.000402,120]
[392290077,1761312650884,-151.0,0.000402,120]
[392290078,1761312650894,-151.0,0.000402,120]
[392290079,1761312650905,-250.0,0.000402,120]
[392290080,1761312650914,-151.0,0.000402,120]
[392290081,1761312650923,-250.0,0.000402,120]
[392290082,1761312650932,-151.0,0.000402,120]
[392290083,1761312650942,-151.0,0.000402,120]
[392290084,1761312650951,-250.0,0.000402,120]
[392290085,1761312650960,-200.0,0.000402,120]
[392290086,1761312650970,-250.0,0.000402,120]
[392290087,1761312650979,-207.4,0.000402,120]
[392290088,1761312650999,-250.0,0.000402,120]
[392290089,1761312651010,-250.0,0.000402,120]
[392290090,1761312651020,-250.0,0.000402,120]
[392290091,1761312651030,-250.0,0.000402,120]
[392290092,1761312651040,-614.577285,0.000402,120]
[392290093,1761312651051,-151.0,0.000402,120]
[392290094,1761312651062,-614.577285,0.000402,120]
[392290095,1761312651074,-614.577285,0.000402,120]
[392290096,1761312651086,-152.648048,0.000402,120]
[392290097,1761312651097,-614.577293,0.000402,120]
[392290098,1761312651107,-151.0,0.000402,120]
[392290099,1761312651118,-279.569016,0.000402,120]
[392290100,1761312651128,-151.0,0.000402,120]
[392290101,1761312651138,-279.569016,0.000402,120]
[392290102,1761312651147,-279.569016,0.000402,120]
[392290103,1761312651162,-231.93324,0.000402,120]
[392290104,1761312651171,-279.569022,0.000402,120]
[392290105,1761312651181,-733.937805,0.000402,120]
[392290106,1761312651191,-257.464864,0.000402,120]
[392290107,1761312651201,-733.937805,0.000402,120]
[392290108,1761312651211,-257.464864,0.000402,120]
[392290109,1761312651220,-733.937805,0.000402,120]
[392290110,1761312651230,-733.937806,0.000402,120]
[392290111,1761312651239,-257.464864,0.000402,120]
[392290112,1761312651248,-186.446864,0.000402,120]
[392290113,1761312651258,-257.464864,0.000402,120]
[392290114,1761312651267,-186.446864,0.000402,120]
[392290115,1761312651277,-186.446864,0.000402,120]
[392290116,1761312651287,-186.446866,0.000402,120]
[392290117,1761312651297,-151.0,0.000402,120]
[392290118,1761312651306,-151.0,0.000402,120]
[392290119,1761312651316,-242.020353,0.000402,120]
[392290120,1761312651326,-156.602051,0.000402,120]
[392290121,1761312651335,-242.020353,0.000402,120]
[392290122,1761312651345,-156.602051,0.000402,120]
[392290123,1761312651355,-151.0,0.000402,120]
[392290124,1761312651365,-242.020353,0.000402,120]
[392290125,1761312651375,-156.602051,0.000402,120]
[392290126,1761312651384,-151.0,0.000402,120]
[392290127,1761312651393,-242.020354,0.000402,120]
[392290128,1761312651405,-156.60206,0.000402,120]
[392290129,1761312651414,-5622.918379,0.000402,120]
[392290130,1761312651423,-5622.918379,0.000402,120]
[392290131,1761312651433,-5622.918379,0.000402,120]
[392290132,1761312651442,-5622.918382,0.000402,120]
[392290133,1761312651451,-160.0,0.00040201,120]
[392290134,1761312651461,-151.0,0.00040201,120]
[392290135,1761312651470,-151.0,0.00040201,120]
[392290136,1761312651479,-162.291008,0.00040201,120]
[392290137,1761312651488,-151.0,0.00040201,120]
[392290138,1761312651498,-151.0,0.00040201,120]
[392290139,1761312651508,-359.101514,0.00040201,120]
[392290140,1761312651518,-151.0,0.00040201,120]
[392290141,1761312651527,-151.0,0.00040201,120]
[392290142,1761312651536,-359.101514,0.00040201,120]
[392290143,1761312651544,-151.0,0.00040201,120]
[392290144,1761312651559,-296.792968,0.00040201,120]
[392290145,1761312651568,-359.101514,0.00040201,120]
[392290146,1761312651580,-359.101514,0.00040201,120]
[392290147,1761312651589,-151.0,0.00040201,120]
[392290148,1761312651599,-151.0,0.00040201,120]
[392290149,1761312651609,-151.0,0.00040201,60]
[392290150,1761312651619,-151.0,0.00040201,120]
[392290151,1761312651632,-123.0113878,0.00040201,120]
[392290152,1761312652278,-136.43493561,0.00040201,120]
[392290153,1761312652350,-168.52,0.00038904,2]
[392290154,1761312652360,-8.87731859,0.00040201,120]
[392290155,1761312652371,-43.87800246,0.00040201,120]
[392290156,1761312653236,-151.0,0.0003999,120]
[392290157,1761312653246,-151.0,0.0003999,120]
[392290158,1761312653256,-151.0,0.0004,120]
[392290159,1761312653266,-151.0,0.0004018,120]
[392290160,1761312653280,-151.0,0.0004019,120]
[392290161,1761312653290,-151.0,0.000402,120]
[392290162,1761312653300,-174.88705635,0.000402,120]
[392290163,1761312653310,-114.96855054,0.00040201,120]
[392290164,1761312653320,-151.0,0.00040201,120]
[392290165,1761312653329,-151.0,0.00040201,120]
[392290166,1761312653339,-151.0,0.00040201,120]
[392290167,1761312653349,-420.59152,0.00040201,120]
[392290168,1761312653359,-420.59152,0.00040201,120]
[392290169,1761312653369,-420.59152,0.00040201,120]
[392290170,1761312653379,-420.59152,0.00040201,120]
[392290171,1761312653388,-151.0,0.00040201,120]
[392290172,1761312653399,-151.0,0.00040201,120]
[392290173,1761312653409,-151.0,0.00040201,120]
[392290174,1761312653419,-200.7156262,0.00040211,30]
[392290175,1761312653429,-6808.48828691,0.00040211,2]
[392290176,1761312653442,-64969.16039025,0.00040211,2]
[392290177,1761312653453,-10362.665513,0.00040211,2]
[392290178,1761312653741,-200.0,0.00040211,7]
[392290179,1761312653752,-200.0,0.00040211,7]
[392290180,1761312653761,-2000.0,0.00040211,7]
[392290181,1761312653771,-200.0,0.00040211,7]
[392290182,1761312653781,-151.000001,0.00040211,120]
[392290183,1761312653791,-151.0,0.00040211,120]
[392290184,1761312653800,-755.768009,0.00040211,120]
[392290185,1761312653810,-151.0,0.00040211,120]
[392290186,1761312653820,-32.87993514,0.00040211,120]
[392290191,1761312817570,175.4,0.00027397,120]
[392290196,1761312878678,196.0,0.00027397,120]
[392290198,1761312966178,150.0,0.000187,120]
[392290216,1761313685928,-197.0,0.00017,2]
[392290217,1761313686042,-53.0,0.00017,2]
[392290224,1761313749134,-250.0,0.000187,2]
[392290225,1761313749160,-250.0,0.000187,2]
[392290226,1761313749182,-456.97762122,0.00023773,2]
[392290248,1761313831738,-2043.02237878,0.00023773,2]
[392290249,1761313831747,-1033.37194307,0.00023773,2]
[392290250,1761313831756,-500.0,0.00024932,2]
[392290251,1761313831764,-177.57,0.00028195,2]
[392290252,1761313831773,-178.58,0.00029119,2]
[392290253,1761313831783,-300.0,0.00029818,2]
[392290254,1761313831792,-1200.0,0.00029818,2]
[392290255,1761313831803,-500.0,0.00029819,2]
[392290256,1761313831813,-500.0,0.00029819,2]
[392290257,1761313831822,-280.53998909,0.00029819,2]
[392290258,1761313831832,-6118.88542484,0.0002982,2]
[392290259,1761313831841,-1018.0,0.0003,2]
[392290260,1761313831851,-500.0,0.00031315,2]
[392290261,1761313831860,-151.0,0.00033,14]
[392290262,1761313831870,-160.0,0.00033934,2]
[392290264,1761313831879,-804.43,0.0003494,30]
[392290266,1761313831888,-461.73,0.00034997,2]
[392290268,1761313831898,-4653.6328487,0.00035069,2]
[392290273,1761313831932,-426.83436047,0.00035069,2]
[392290278,1761313831970,-7637.52279083,0.00035069,2]
[392290280,1761313831979,-2274.18,0.00035576,2]
[392290282,1761313831992,-476.35224409,0.00035675,2]
[392290284,1761313832002,-200.0,0.00035803,2]
[392290286,1761313832012,-1807.60126414,0.00036293,2]
[392290289,1761313832023,-5385.80613853,0.00036293,2]
[392290290,1761313832033,-472.883,0.00036293,44]
[392290293,1761313832043,-980.22668022,0.00036638,9]
[392290295,1761313832053,-197.18808553,0.00036638,15]
[392290297,1761313832063,-424.67363849,0.00036642,15]
[392290299,1761313832072,-169.87872523,0.00036642,15]
[392290301,1761313832083,-151.0,0.00036678,2]
[392290303,1761313832092,-151.0,0.00036678,2]
[392290305,1761313832102,-151.0,0.00036678,2]
[392290307,1761313832111,-151.0,0.00036678,2]
[392290309,1761313832120,-151.0,0.00036678,2]
[392290311,1761313832130,-151.0,0.00036678,2]
[392290313,1761313832140,-151.0,0.00036678,2]
[392290315,1761313832150,-151.0,0.00036678,2]
[392290317,1761313832160,-151.0,0.00036678,2]
[392290319,1761313832170,-151.0,0.00036678,2]
[392290322,1761313832184,-151.0,0.00036678,2]
[392290324,1761313832193,-272.84897206,0.00036678,2]
[392290326,1761313832205,-151.0,0.00036678,2]
[392290328,1761313832214,-151.0,0.00036678,2]
[392290330,1761313832225,-151.0,0.00036678,2]
[392290332,1761313832234,-151.0,0.00036678,2]
[392290334,1761313832244,-151.0,0.00036678,2]
[392290336,1761313832254,-151.0,0.00036678,2]
[392290338,1761313832263,-151.0,0.00036678,2]
[392290340,1761313832273,-151.0,0.00036678,2]
[392290342,1761313832282,-151.0,0.00036678,2]
[392290344,1761313832292,-151.0,0.00036678,2]
[392290346,1761313832302,-151.0,0.00036678,2]
[392290348,1761313832312,-151.0,0.00036678,2]
[392290350,1761313832322,-151.0,0.00036678,2]
[392290352,1761313832331,-151.0,0.00036678,2]
[392290354,1761313832340,-151.0,0.00036678,2]
[392290356,1761313832350,-151.0,0.00036678,2]
[392290358,1761313832360,-151.0,0.00036678,2]
[392290360,1761313832369,-151.0,0.00036678,2]
[392290362,1761313832382,-151.0,0.00036678,2]
[392290364,1761313832391,-151.0,0.00036678,2]
[392290366,1761313832401,-151.0,0.00036678,2]
[392290369,1761313832411,-151.0,0.00036678,2]
[392290371,1761313832420,-151.0,0.00036678,2]
[392290373,1761313832430,-151.0,0.00036678,2]
[392290375,1761313832439,-151.0,0.00036678,2]
[392290377,1761313832448,-151.0,0.00036678,2]
[392290379,1761313832461,-151.0,0.00036678,2]
[392290381,1761313832471,-151.0,0.00036678,2]
[392290383,1761313832480,-151.0,0.00036678,2]
[392290385,1761313832490,-151.0,0.00036678,2]
[392290387,1761313832499,-151.0,0.00036678,2]
[392290389,1761313832509,-151.0,0.00036678,2]
[392290391,1761313832519,-151.0,0.00036678,2]
[392290393,1761313832528,-500.0,0.00036731,2]
[392290395,1761313832538,-500.0,0.00036731,30]
[392290397,1761313832547,-500.0,0.00036731,30]
[392290399,1761313832557,-465.79407674,0.00036731,30]
[392290401,1761313832567,-500.0,0.00036731,30]
[392290404,1761313832580,-500.0,0.00036731,30]
[392290406,1761313832589,-500.0,0.00036731,30]
[392290408,1761313832599,-500.0,0.00036731,30]
[392290410,1761313832609,-500.0,0.00036731,30]
[392290412,1761313832618,-500.0,0.00036731,30]
[392290414,1761313832628,-500.0,0.00036731,30]
[392290416,1761313832637,-964.87064892,0.00036732,2]
[392290418,1761313832647,-205.07568247,0.00036737,30]
[392290420,1761313832658,-500.0,0.00036737,30]
[392290422,1761313832668,-500.0,0.00036737,30]
[392290424,1761313832677,-500.0,0.00036737,2]
[392290426,1761313832686,-500.0,0.00036737,7]
[392290428,1761313832696,-500.0,0.00036737,30]
[392290430,1761313832707,-500.0,0.00036737,30]
[392290432,1761313832716,-18299.33446431,0.00036738,2]
[392290911,1761313837469,-27625.0,0.00036738,2]
[392290924,1761313837587,-445.28862,0.00036738,2]
[392290937,1761313837702,-9806.36542704,0.00036738,2]